[Event "Late-Titled-Tuesday-Blitz-May-28-2024"]
[Site "Chess.com"]
[Date "2024.05.28"]
[Round "11"]
[White "Dolphin_2010"]
[Black "GlavkonVVS"]
[Result "1-0"]
[WhiteElo "2751"]
[BlackElo "2570"]
[TimeControl "180+1"]
[EndTime "16:04:32 PDT"]
[Termination "Dolphin_2010 won by resignation"]

1. d4 {[%clk 0:02:57.5]} 1... Nf6 {[%clk 0:03:00]} 2. Bg5 {[%clk 0:02:56.6]}
2... c5 {[%clk 0:03:00.2]} 3. Bxf6 {[%clk 0:02:53]} 3... gxf6 {[%clk 0:02:59.9]}
4. c3 {[%clk 0:02:53.9]} 4... Qb6 {[%clk 0:02:57.5]} 5. Qc1 {[%clk 0:02:49.3]}
5... e6 {[%clk 0:02:41.3]} 6. Nf3 {[%clk 0:02:48]} 6... Nc6 {[%clk 0:02:40.7]}
7. e3 {[%clk 0:02:47.3]} 7... Rg8 {[%clk 0:02:40.4]} 8. g3 {[%clk 0:02:46.7]}
8... Bh6 {[%clk 0:02:32.8]} 9. Be2 {[%clk 0:02:42.2]} 9... cxd4 {[%clk
0:02:27.9]} 10. cxd4 {[%clk 0:02:43.1]} 10... d5 {[%clk 0:02:25.5]} 11. Nc3
{[%clk 0:02:42.6]} 11... Bd7 {[%clk 0:02:23.4]} 12. O-O {[%clk 0:02:31.2]} 12...
Rc8 {[%clk 0:02:23.1]} 13. Qb1 {[%clk 0:01:59.4]} 13... f5 {[%clk 0:02:21.1]}
14. Na4 {[%clk 0:01:58.7]} 14... Qc7 {[%clk 0:02:15.3]} 15. b4 {[%clk
0:01:51.4]} 15... f6 {[%clk 0:01:57.9]} 16. Rc1 {[%clk 0:01:45.9]} 16... Qd6
{[%clk 0:01:50.4]} 17. Nc5 {[%clk 0:01:45.2]} 17... b6 {[%clk 0:01:45.5]} 18.
Nxd7 {[%clk 0:01:44.5]} 18... Kxd7 {[%clk 0:01:44.6]} 19. Bb5 {[%clk 0:01:39]}
19... Ke7 {[%clk 0:01:41.1]} 20. a3 {[%clk 0:01:29.1]} 20... Bxe3 {[%clk
0:01:36.5]} 21. fxe3 {[%clk 0:01:15.9]} 21... Rxg3+ {[%clk 0:01:35.5]} 22. Kf2
{[%clk 0:01:16.3]} 22... Rh3 {[%clk 0:01:32]} 23. Rxc6 {[%clk 0:01:10.9]} 23...
Rxc6 {[%clk 0:01:29.2]} 24. Bxc6 {[%clk 0:01:11.8]} 24... Qxc6 {[%clk
0:01:29.3]} 25. b5 {[%clk 0:00:57.7]} 25... Qc7 {[%clk 0:01:23.5]} 26. Kg2
{[%clk 0:00:58]} 26... Rh6 {[%clk 0:01:21.7]} 27. Qc1 {[%clk 0:00:57.2]} 27...
Rg6+ {[%clk 0:01:20.1]} 28. Kf2 {[%clk 0:00:57.2]} 28... Qd6 {[%clk 0:01:09.2]}
29. Qc8 {[%clk 0:00:55]} 29... f4 {[%clk 0:01:04.5]} 30. Rc1 {[%clk 0:00:50.3]}
30... fxe3+ {[%clk 0:01:04.2]} 31. Kxe3 {[%clk 0:00:50.9]} 31... f5 {[%clk
0:00:16.6]} 32. Rc7+ {[%clk 0:00:50.9]} 32... Kf6 {[%clk 0:00:16.8]} 33. Qh8+
{[%clk 0:00:51.4]} 1-0

[Event "Late-Titled-Tuesday-Blitz-May-28-2024"]
[Site "Chess.com"]
[Date "2024.05.28"]
[Round "11"]
[White "hansen"]
[Black "K_A_S_T_O_R"]
[Result "0-1"]
[WhiteElo "3048"]
[BlackElo "2871"]
[TimeControl "180+1"]
[EndTime "16:04:45 PDT"]
[Termination "K_A_S_T_O_R won on time"]

1. e4 {[%clk 0:03:00.9]} 1... c5 {[%clk 0:03:00]} 2. Nf3 {[%clk 0:03:01]} 2...
d6 {[%clk 0:03:00.3]} 3. d4 {[%clk 0:02:57.4]} 3... cxd4 {[%clk 0:03:00.1]} 4.
Nxd4 {[%clk 0:02:58.3]} 4... Nf6 {[%clk 0:03:00.1]} 5. Nc3 {[%clk 0:02:58.9]}
5... a6 {[%clk 0:03:00.4]} 6. h3 {[%clk 0:02:54.8]} 6... e6 {[%clk 0:02:59.5]}
7. g4 {[%clk 0:02:53.7]} 7... h6 {[%clk 0:02:59.8]} 8. Bg2 {[%clk 0:02:44.2]}
8... Be7 {[%clk 0:02:58.8]} 9. Be3 {[%clk 0:02:41.6]} 9... Nc6 {[%clk
0:02:58.4]} 10. Qe2 {[%clk 0:02:38.6]} 10... Nxd4 {[%clk 0:02:53.6]} 11. Bxd4
{[%clk 0:02:38.7]} 11... e5 {[%clk 0:02:54]} 12. Be3 {[%clk 0:02:38.9]} 12... b5
{[%clk 0:02:54.5]} 13. O-O-O {[%clk 0:02:09.5]} 13... b4 {[%clk 0:02:53.1]} 14.
Nd5 {[%clk 0:02:08.3]} 14... Nxd5 {[%clk 0:02:52.9]} 15. exd5 {[%clk 0:02:07.2]}
15... O-O {[%clk 0:02:48.5]} 16. Kb1 {[%clk 0:01:59.2]} 16... f5 {[%clk
0:02:39.1]} 17. f4 {[%clk 0:01:48.3]} 17... exf4 {[%clk 0:02:35.9]} 18. Bxf4
{[%clk 0:01:48.3]} 18... fxg4 {[%clk 0:02:35.8]} 19. Bd2 {[%clk 0:01:40.1]}
19... Bf6 {[%clk 0:02:28.6]} 20. hxg4 {[%clk 0:01:34.7]} 20... a5 {[%clk
0:02:18.2]} 21. Rde1 {[%clk 0:01:17.1]} 21... Ra7 {[%clk 0:01:57]} 22. Be4
{[%clk 0:01:11.9]} 22... Bg5 {[%clk 0:01:51.4]} 23. Rhg1 {[%clk 0:00:58.7]}
23... Bxd2 {[%clk 0:01:38.6]} 24. Qxd2 {[%clk 0:00:59.1]} 24... Qg5 {[%clk
0:01:38.7]} 25. Qh2 {[%clk 0:00:57.2]} 25... Rf4 {[%clk 0:01:27.8]} 26. Bf5
{[%clk 0:00:35.7]} 26... Bxf5 {[%clk 0:01:14.4]} 27. gxf5 {[%clk 0:00:36.1]}
27... Qxf5 {[%clk 0:01:15]} 28. Qxh6 {[%clk 0:00:30.9]} 28... Rf2 {[%clk
0:01:10.4]} 29. Re8+ {[%clk 0:00:13.5]} 29... Kf7 {[%clk 0:01:10]} 30. Qe6+
{[%clk 0:00:11.5]} 30... Qxe6 {[%clk 0:01:08.2]} 31. Rxe6 {[%clk 0:00:12.2]}
31... Rc7 {[%clk 0:01:01.4]} 32. Rxd6 {[%clk 0:00:12.4]} 32... Rcxc2 {[%clk
0:00:59.7]} 33. Rd7+ {[%clk 0:00:12.2]} 33... Ke8 {[%clk 0:01:00]} 34. Rgxg7
{[%clk 0:00:04.2]} 34... Rxb2+ {[%clk 0:00:59.3]} 35. Kc1 {[%clk 0:00:04.8]}
35... Rxa2 {[%clk 0:00:59.6]} 36. Kb1 {[%clk 0:00:03.2]} 36... b3 {[%clk
0:01:00]} 37. Rde7+ {[%clk 0:00:02.9]} 37... Kf8 {[%clk 0:00:59.9]} 0-1

[Event "Late-Titled-Tuesday-Blitz-May-28-2024"]
[Site "Chess.com"]
[Date "2024.05.28"]
[Round "11"]
[White "YellowJacek"]
[Black "GoValya"]
[Result "1-0"]
[WhiteElo "2362"]
[BlackElo "2215"]
[TimeControl "180+1"]
[EndTime "16:04:54 PDT"]
[Termination "YellowJacek won by resignation"]

1. e4 {[%clk 0:02:55.5]} 1... e6 {[%clk 0:02:59.2]} 2. d4 {[%clk 0:02:54]} 2...
d5 {[%clk 0:02:59.4]} 3. Nc3 {[%clk 0:02:54.6]} 3... Nf6 {[%clk 0:02:58.1]} 4.
e5 {[%clk 0:02:54.7]} 4... Nfd7 {[%clk 0:02:56.7]} 5. f4 {[%clk 0:02:55.3]} 5...
c5 {[%clk 0:02:53.5]} 6. Nf3 {[%clk 0:02:55.8]} 6... Nc6 {[%clk 0:02:51.6]} 7.
Be3 {[%clk 0:02:55.3]} 7... cxd4 {[%clk 0:02:40.8]} 8. Nxd4 {[%clk 0:02:54.6]}
8... Bb4 {[%clk 0:02:39.3]} 9. a3 {[%clk 0:02:50.3]} 9... Bxc3+ {[%clk
0:02:37.8]} 10. bxc3 {[%clk 0:02:51.2]} 10... Qa5 {[%clk 0:02:19.5]} 11. Qd2
{[%clk 0:02:35.5]} 11... O-O {[%clk 0:02:03.6]} 12. Bd3 {[%clk 0:02:18.4]} 12...
Nc5 {[%clk 0:01:55.2]} 13. Nb3 {[%clk 0:02:01.6]} 13... Nxd3+ {[%clk 0:01:43.9]}
14. cxd3 {[%clk 0:01:56]} 14... Qc7 {[%clk 0:01:23.5]} 15. O-O {[%clk
0:01:38.5]} 15... b6 {[%clk 0:01:19.3]} 16. a4 {[%clk 0:01:34.9]} 16... Na5
{[%clk 0:01:05.3]} 17. Nxa5 {[%clk 0:01:34.1]} 17... bxa5 {[%clk 0:01:05.2]} 18.
Bd4 {[%clk 0:01:34.3]} 18... Ba6 {[%clk 0:01:03.1]} 19. f5 {[%clk 0:01:34.2]}
19... exf5 {[%clk 0:01:01.1]} 20. Rxf5 {[%clk 0:01:35.1]} 20... Bc8 {[%clk
0:00:55.6]} 21. Rf3 {[%clk 0:01:32]} 21... Be6 {[%clk 0:00:55.5]} 22. Rg3 {[%clk
0:01:27.8]} 22... g6 {[%clk 0:00:52.3]} 23. Qh6 {[%clk 0:01:20.5]} 23... Rfb8
{[%clk 0:00:45.9]} 24. Rf1 {[%clk 0:01:19.4]} 24... Rb2 {[%clk 0:00:34.4]} 25.
h3 {[%clk 0:01:19.3]} 25... Rab8 {[%clk 0:00:30.7]} 26. Rf4 {[%clk 0:01:19.2]}
26... Rb1+ {[%clk 0:00:23.1]} 27. Kh2 {[%clk 0:01:19.1]} 27... Ra1 {[%clk
0:00:14.1]} 28. Rh4 {[%clk 0:01:17.6]} 28... Rbb1 {[%clk 0:00:14]} 29. Qxh7+
{[%clk 0:01:17.4]} 29... Kf8 {[%clk 0:00:14.5]} 30. Qh8+ {[%clk 0:01:17.6]}
30... Ke7 {[%clk 0:00:14.7]} 31. Qf6+ {[%clk 0:01:16.4]} 31... Kd7 {[%clk
0:00:15.1]} 32. Rxg6 {[%clk 0:01:13.1]} 32... Rh1+ {[%clk 0:00:13.5]} 33. Kg3
{[%clk 0:01:13.5]} 33... Kc6 {[%clk 0:00:12]} 34. Rg8 {[%clk 0:01:08.9]} 34...
Qd7 {[%clk 0:00:11.3]} 35. Rd8 {[%clk 0:01:04.9]} 35... Qc7 {[%clk 0:00:10.3]}
36. Rd6+ {[%clk 0:01:05]} 36... Kb7 {[%clk 0:00:09.7]} 37. Rh7 {[%clk
0:01:02.2]} 37... Rad1 {[%clk 0:00:09.1]} 38. Rxe6 {[%clk 0:01:02.3]} 38...
Rxd3+ {[%clk 0:00:09.1]} 39. Kh4 {[%clk 0:00:59.7]} 39... Rxd4+ {[%clk 0:00:05]}
40. cxd4 {[%clk 0:01:00.1]} 1-0

[Event "Late-Titled-Tuesday-Blitz-May-28-2024"]
[Site "Chess.com"]
[Date "2024.05.28"]
[Round "11"]
[White "ManMish2"]
[Black "atalz0"]
[Result "0-1"]
[WhiteElo "2640"]
[BlackElo "2501"]
[TimeControl "180+1"]
[EndTime "16:04:56 PDT"]
[Termination "atalz0 won by resignation"]

1. e4 {[%clk 0:03:00.9]} 1... d5 {[%clk 0:03:00.2]} 2. exd5 {[%clk 0:03:01.7]}
2... Nf6 {[%clk 0:03:00.4]} 3. d4 {[%clk 0:03:00.5]} 3... Nxd5 {[%clk
0:03:00.4]} 4. Nf3 {[%clk 0:02:59.6]} 4... Bg4 {[%clk 0:03:00.1]} 5. Be2 {[%clk
0:02:57.6]} 5... Nc6 {[%clk 0:02:59.5]} 6. O-O {[%clk 0:02:57.6]} 6... e6 {[%clk
0:02:59.6]} 7. Nc3 {[%clk 0:02:56.5]} 7... Nxc3 {[%clk 0:02:49.9]} 8. bxc3
{[%clk 0:02:57.4]} 8... Bd6 {[%clk 0:02:49.1]} 9. h3 {[%clk 0:02:55.7]} 9... Bh5
{[%clk 0:02:46.5]} 10. Bg5 {[%clk 0:02:55.5]} 10... Be7 {[%clk 0:02:44.8]} 11.
Be3 {[%clk 0:02:48.3]} 11... O-O {[%clk 0:02:41.8]} 12. c4 {[%clk 0:02:46.6]}
12... b6 {[%clk 0:02:27.3]} 13. Rb1 {[%clk 0:02:41.6]} 13... Na5 {[%clk
0:02:22.3]} 14. Rb5 {[%clk 0:02:35.7]} 14... Bxf3 {[%clk 0:02:06.5]} 15. Bxf3
{[%clk 0:02:34.9]} 15... c6 {[%clk 0:02:06]} 16. Rb1 {[%clk 0:02:10.7]} 16...
Nxc4 {[%clk 0:02:01.6]} 17. Bxc6 {[%clk 0:02:10.3]} 17... Rc8 {[%clk 0:02:00.1]}
18. Be4 {[%clk 0:02:06.1]} 18... f5 {[%clk 0:01:39.8]} 19. Bf3 {[%clk
0:02:03.5]} 19... Nxe3 {[%clk 0:01:31.9]} 20. fxe3 {[%clk 0:02:02.3]} 20... Bg5
{[%clk 0:01:31.7]} 21. Qd3 {[%clk 0:02:01.9]} 21... Qc7 {[%clk 0:01:27.6]} 22.
Qb3 {[%clk 0:01:41.1]} 22... Qc4 {[%clk 0:01:18.6]} 23. Rfe1 {[%clk 0:01:19.3]}
23... Qxb3 {[%clk 0:01:18.3]} 24. cxb3 {[%clk 0:01:18.9]} 24... Rc3 {[%clk
0:01:18.1]} 25. e4 {[%clk 0:01:18.1]} 25... Be3+ {[%clk 0:01:16.2]} 26. Kh1
{[%clk 0:01:13.8]} 26... Bxd4 {[%clk 0:01:16.4]} 27. exf5 {[%clk 0:01:12.7]}
27... exf5 {[%clk 0:01:17.3]} 28. Rbd1 {[%clk 0:01:12]} 28... Bc5 {[%clk
0:00:56.2]} 29. Rd7 {[%clk 0:01:10.5]} 29... a5 {[%clk 0:00:54.8]} 30. Bd5+
{[%clk 0:00:58.1]} 30... Kh8 {[%clk 0:00:54.9]} 31. Bc4 {[%clk 0:00:54.4]} 31...
Re3 {[%clk 0:00:51.2]} 32. Red1 {[%clk 0:00:48.4]} 32... h6 {[%clk 0:00:44.7]}
33. Rb7 {[%clk 0:00:32.5]} 33... f4 {[%clk 0:00:43.4]} 34. Rdd7 {[%clk
0:00:20.5]} 34... Re1+ {[%clk 0:00:38.1]} 35. Kh2 {[%clk 0:00:17.4]} 35... Bg1+
{[%clk 0:00:38.1]} 36. Kh1 {[%clk 0:00:17]} 36... Bf2+ {[%clk 0:00:38.1]} 0-1

[Event "Late-Titled-Tuesday-Blitz-May-28-2024"]
[Site "Chess.com"]
[Date "2024.05.28"]
[Round "11"]
[White "nocnypako"]
[Black "bubeliang"]
[Result "0-1"]
[WhiteElo "2691"]
[BlackElo "2794"]
[TimeControl "180+1"]
[EndTime "16:05:01 PDT"]
[Termination "bubeliang won by resignation"]

1. d4 {[%clk 0:03:00.9]} 1... d5 {[%clk 0:02:59.5]} 2. Bf4 {[%clk 0:03:00.8]}
2... c5 {[%clk 0:02:59.4]} 3. e3 {[%clk 0:03:00.7]} 3... Nc6 {[%clk 0:02:59.6]}
4. c3 {[%clk 0:03:01]} 4... Qb6 {[%clk 0:03:00.1]} 5. Qb3 {[%clk 0:03:00.7]}
5... c4 {[%clk 0:03:00.5]} 6. Qxb6 {[%clk 0:02:51.1]} 6... axb6 {[%clk
0:03:01.4]} 7. Nd2 {[%clk 0:02:50]} 7... e6 {[%clk 0:02:59.5]} 8. a3 {[%clk
0:02:49]} 8... Nf6 {[%clk 0:02:49.2]} 9. h3 {[%clk 0:02:46.6]} 9... Be7 {[%clk
0:02:48.4]} 10. Ngf3 {[%clk 0:02:46.8]} 10... O-O {[%clk 0:02:48.5]} 11. Be2
{[%clk 0:02:46.4]} 11... Bd7 {[%clk 0:02:46.7]} 12. O-O {[%clk 0:02:45.7]} 12...
Nh5 {[%clk 0:02:41.6]} 13. Bh2 {[%clk 0:02:44.8]} 13... f5 {[%clk 0:02:35.2]}
14. Ne5 {[%clk 0:02:36.6]} 14... Nf6 {[%clk 0:02:23.5]} 15. Nxd7 {[%clk
0:02:36.2]} 15... Nxd7 {[%clk 0:02:24.4]} 16. Rad1 {[%clk 0:02:34.1]} 16... Nf6
{[%clk 0:02:22.8]} 17. Rfe1 {[%clk 0:02:33.4]} 17... Ne4 {[%clk 0:02:20.2]} 18.
Nxe4 {[%clk 0:02:28.6]} 18... fxe4 {[%clk 0:02:21.1]} 19. f3 {[%clk 0:02:28.8]}
19... Bg5 {[%clk 0:02:13.5]} 20. fxe4 {[%clk 0:02:14]} 20... Bxe3+ {[%clk
0:02:12.4]} 21. Kh1 {[%clk 0:02:14.7]} 21... Bf2 {[%clk 0:01:51.1]} 22. Rf1
{[%clk 0:02:14.9]} 22... dxe4 {[%clk 0:01:49.6]} 23. Bxc4 {[%clk 0:02:11.8]}
23... Rae8 {[%clk 0:01:49.7]} 24. Bd6 {[%clk 0:01:54.2]} 24... Rf6 {[%clk
0:01:38.3]} 25. g4 {[%clk 0:01:53.3]} 25... e3 {[%clk 0:01:33.4]} 26. Kg2 {[%clk
0:01:52.9]} 26... Kh8 {[%clk 0:01:31.5]} 27. Be2 {[%clk 0:01:17.6]} 27... h6
{[%clk 0:01:29.2]} 28. Bh2 {[%clk 0:01:07.1]} 28... Ne7 {[%clk 0:01:25.1]} 29.
Bg3 {[%clk 0:00:34.8]} 29... Nd5 {[%clk 0:01:12.3]} 30. Bxf2 {[%clk 0:00:06.8]}
30... exf2 {[%clk 0:01:07.2]} 31. Rxf2 {[%clk 0:00:06.6]} 31... Ne3+ {[%clk
0:01:07.4]} 32. Kg3 {[%clk 0:00:07.3]} 32... Rxf2 {[%clk 0:01:04.2]} 33. Kxf2
{[%clk 0:00:08.2]} 33... Nxd1+ {[%clk 0:01:04.9]} 34. Bxd1 {[%clk 0:00:08.8]}
34... Kg8 {[%clk 0:01:04.7]} 35. Bf3 {[%clk 0:00:08.7]} 35... Rb8 {[%clk
0:01:03.3]} 36. Ke3 {[%clk 0:00:08.9]} 36... Kf7 {[%clk 0:01:03.7]} 37. Kf4
{[%clk 0:00:08.9]} 37... Kf6 {[%clk 0:01:04.2]} 38. Be4 {[%clk 0:00:07.2]} 38...
g5+ {[%clk 0:01:02.2]} 39. Ke3 {[%clk 0:00:07]} 39... Ke7 {[%clk 0:01:02.9]} 40.
a4 {[%clk 0:00:06.5]} 40... Kd6 {[%clk 0:01:03.1]} 41. b3 {[%clk 0:00:06.2]}
41... Kc7 {[%clk 0:01:03]} 42. c4 {[%clk 0:00:03.7]} 42... Rf8 {[%clk
0:01:03.4]} 43. Bf3 {[%clk 0:00:02.7]} 43... Rf4 {[%clk 0:01:03.3]} 44. d5
{[%clk 0:00:01.9]} 44... exd5 {[%clk 0:01:04.2]} 45. Bxd5 {[%clk 0:00:01.8]}
45... Rf1 {[%clk 0:01:03.6]} 0-1

[Event "Late-Titled-Tuesday-Blitz-May-28-2024"]
[Site "Chess.com"]
[Date "2024.05.28"]
[Round "11"]
[White "Onthequiet"]
[Black "nabukatnezarr"]
[Result "0-1"]
[WhiteElo "2438"]
[BlackElo "2633"]
[TimeControl "180+1"]
[EndTime "16:05:09 PDT"]
[Termination "nabukatnezarr won by resignation"]

1. d4 {[%clk 0:02:59.9]} 1... a5 {[%clk 0:03:00.9]} 2. Nf3 {[%clk 0:02:58.8]}
2... a4 {[%clk 0:03:00.9]} 3. g3 {[%clk 0:02:58.6]} 3... Nf6 {[%clk 0:02:59.5]}
4. Bg2 {[%clk 0:02:58.8]} 4... e6 {[%clk 0:02:59.9]} 5. O-O {[%clk 0:02:58.9]}
5... d5 {[%clk 0:03:00.4]} 6. c4 {[%clk 0:02:57.1]} 6... Nbd7 {[%clk 0:02:57.5]}
7. Nc3 {[%clk 0:02:55.3]} 7... a3 {[%clk 0:02:57.8]} 8. b3 {[%clk 0:02:53.5]}
8... Bb4 {[%clk 0:02:56.1]} 9. Bd2 {[%clk 0:02:53.2]} 9... Bxc3 {[%clk
0:02:55.1]} 10. Bxc3 {[%clk 0:02:52.9]} 10... O-O {[%clk 0:02:54.5]} 11. Bb4
{[%clk 0:02:49.6]} 11... Re8 {[%clk 0:02:54.3]} 12. Qc1 {[%clk 0:02:48.7]} 12...
dxc4 {[%clk 0:02:44.3]} 13. bxc4 {[%clk 0:02:46.5]} 13... Nb6 {[%clk 0:02:45.2]}
14. e3 {[%clk 0:02:37.5]} 14... Bd7 {[%clk 0:02:41.9]} 15. Ne5 {[%clk
0:02:35.6]} 15... Qc8 {[%clk 0:02:31.7]} 16. Bxa3 {[%clk 0:02:31.6]} 16... Ba4
{[%clk 0:02:32.2]} 17. Bb2 {[%clk 0:02:21.6]} 17... c6 {[%clk 0:02:31.3]} 18. h3
{[%clk 0:02:05.2]} 18... Nbd7 {[%clk 0:02:31.8]} 19. Nd3 {[%clk 0:01:41.1]}
19... Qc7 {[%clk 0:02:28.7]} 20. g4 {[%clk 0:00:57]} 20... Nf8 {[%clk
0:02:26.1]} 21. g5 {[%clk 0:00:55.8]} 21... N6d7 {[%clk 0:02:25.9]} 22. Qc3
{[%clk 0:00:51.6]} 22... Ng6 {[%clk 0:02:25.1]} 23. f4 {[%clk 0:00:50.6]} 23...
Nh4 {[%clk 0:02:24.8]} 24. Rf2 {[%clk 0:00:35.2]} 24... Nf5 {[%clk 0:02:23.7]}
25. Re1 {[%clk 0:00:33.3]} 25... b5 {[%clk 0:02:15.3]} 26. c5 {[%clk 0:00:30.6]}
26... Nf8 {[%clk 0:02:08.4]} 27. Nb4 {[%clk 0:00:30.2]} 27... Ne7 {[%clk
0:02:05.2]} 28. a3 {[%clk 0:00:30.1]} 28... Nd5 {[%clk 0:02:01]} 29. Bxd5 {[%clk
0:00:30]} 29... exd5 {[%clk 0:02:01.8]} 30. Bc1 {[%clk 0:00:27.9]} 30... Re4
{[%clk 0:02:01.4]} 31. Rg2 {[%clk 0:00:27.2]} 31... Rae8 {[%clk 0:02:01.5]} 32.
Rf1 {[%clk 0:00:27.5]} 32... Ng6 {[%clk 0:02:01.6]} 33. Qd2 {[%clk 0:00:23.4]}
33... Nh4 {[%clk 0:02:01.8]} 34. Rg4 {[%clk 0:00:23.1]} 34... Nf5 {[%clk
0:02:02.7]} 35. Qf2 {[%clk 0:00:22.6]} 35... Nxe3 {[%clk 0:01:59.8]} 36. Bxe3
{[%clk 0:00:22.3]} 36... Rxe3 {[%clk 0:02:00.7]} 37. Rg3 {[%clk 0:00:19.6]}
37... Re2 {[%clk 0:01:57.1]} 38. Qf3 {[%clk 0:00:19.3]} 38... g6 {[%clk
0:01:51.2]} 39. h4 {[%clk 0:00:19.4]} 39... R2e4 {[%clk 0:01:50.4]} 40. h5
{[%clk 0:00:19.3]} 40... Rxd4 {[%clk 0:01:49.7]} 41. h6 {[%clk 0:00:19.5]} 41...
Ree4 {[%clk 0:01:47.1]} 42. Rg4 {[%clk 0:00:18.9]} 42... Qe7 {[%clk 0:01:44.6]}
43. Nxc6 {[%clk 0:00:13.1]} 43... Qxc5 {[%clk 0:01:45.2]} 44. Nxd4 {[%clk
0:00:13.2]} 44... Qxd4+ {[%clk 0:01:46.1]} 45. Qf2 {[%clk 0:00:13.3]} 45... Re3
{[%clk 0:01:22.7]} 46. Re1 {[%clk 0:00:12.2]} 46... Rxe1+ {[%clk 0:01:22.1]} 47.
Kg2 {[%clk 0:00:12.7]} 47... Qe4+ {[%clk 0:01:14.9]} 48. Kg3 {[%clk 0:00:10.7]}
48... Re3+ {[%clk 0:01:06.2]} 49. Kh4 {[%clk 0:00:10.3]} 49... Qh1+ {[%clk
0:01:04.1]} 0-1

[Event "Late-Titled-Tuesday-Blitz-May-28-2024"]
[Site "Chess.com"]
[Date "2024.05.28"]
[Round "11"]
[White "Robert_Oros"]
[Black "th3d4rkness"]
[Result "1/2-1/2"]
[WhiteElo "2428"]
[BlackElo "2198"]
[TimeControl "180+1"]
[EndTime "16:05:09 PDT"]
[Termination "Game drawn by repetition"]

1. d4 {[%clk 0:03:00.9]} 1... Nf6 {[%clk 0:02:58.4]} 2. c4 {[%clk 0:03:00.2]}
2... e6 {[%clk 0:02:58.7]} 3. Nf3 {[%clk 0:03:00.2]} 3... Bb4+ {[%clk
0:02:58.5]} 4. Nbd2 {[%clk 0:02:59.9]} 4... d5 {[%clk 0:02:57.2]} 5. Qa4+ {[%clk
0:02:59]} 5... Nc6 {[%clk 0:02:56.9]} 6. a3 {[%clk 0:02:59.2]} 6... Be7 {[%clk
0:02:55.8]} 7. e3 {[%clk 0:02:55.4]} 7... O-O {[%clk 0:02:54.5]} 8. Qc2 {[%clk
0:02:51.1]} 8... a6 {[%clk 0:02:51.7]} 9. Bd3 {[%clk 0:02:42.1]} 9... h6 {[%clk
0:02:47.4]} 10. b3 {[%clk 0:02:37.8]} 10... Re8 {[%clk 0:02:44.3]} 11. Bb2
{[%clk 0:02:36.4]} 11... Bf8 {[%clk 0:02:43.9]} 12. Rg1 {[%clk 0:02:33.3]} 12...
dxc4 {[%clk 0:02:33.3]} 13. Nxc4 {[%clk 0:02:25.1]} 13... b5 {[%clk 0:02:30.6]}
14. Nce5 {[%clk 0:02:14.1]} 14... Nxe5 {[%clk 0:02:28.2]} 15. dxe5 {[%clk
0:02:09.6]} 15... Nd5 {[%clk 0:02:23.3]} 16. Rd1 {[%clk 0:02:04.1]} 16... Qe7
{[%clk 0:02:12.6]} 17. Nd4 {[%clk 0:01:47.1]} 17... c5 {[%clk 0:02:02.3]} 18.
Nf3 {[%clk 0:01:41.1]} 18... Bb7 {[%clk 0:02:01.1]} 19. Qe2 {[%clk 0:01:23.2]}
19... Rac8 {[%clk 0:01:52.4]} 20. Nd2 {[%clk 0:01:16.8]} 20... Nb6 {[%clk
0:01:49]} 21. Bb1 {[%clk 0:01:06.8]} 21... Red8 {[%clk 0:01:44.7]} 22. f4 {[%clk
0:00:43.9]} 22... c4 {[%clk 0:01:43.6]} 23. bxc4 {[%clk 0:00:41.9]} 23... Nxc4
{[%clk 0:01:39.2]} 24. Nxc4 {[%clk 0:00:40.9]} 24... Rxd1+ {[%clk 0:01:37.2]}
25. Qxd1 {[%clk 0:00:38.3]} 25... bxc4 {[%clk 0:01:33.3]} 26. Qc2 {[%clk
0:00:29]} 26... g6 {[%clk 0:01:25.9]} 27. g3 {[%clk 0:00:27.4]} 27... c3 {[%clk
0:01:20.3]} 28. Bc1 {[%clk 0:00:23.5]} 28... Qc5 {[%clk 0:01:13.2]} 29. Rf1
{[%clk 0:00:16.4]} 29... Bc6 {[%clk 0:01:09.6]} 30. Ba2 {[%clk 0:00:11.9]} 30...
Bb5 {[%clk 0:01:08.6]} 31. Rf2 {[%clk 0:00:10.3]} 31... Bc4 {[%clk 0:01:03.7]}
32. Bxc4 {[%clk 0:00:08]} 32... Qxc4 {[%clk 0:01:03.8]} 33. e4 {[%clk
0:00:07.8]} 33... Rd8 {[%clk 0:01:02]} 34. Rf3 {[%clk 0:00:07.3]} 34... Qd4
{[%clk 0:01:00.2]} 35. Rxc3 {[%clk 0:00:02.9]} 35... Qg1+ {[%clk 0:00:59.7]} 36.
Ke2 {[%clk 0:00:03]} 36... Qg2+ {[%clk 0:00:58.8]} 37. Ke1 {[%clk 0:00:01]}
37... Qg1+ {[%clk 0:00:58.8]} 38. Ke2 {[%clk 0:00:01.4]} 38... Qxh2+ {[%clk
0:00:55.7]} 39. Kf3 {[%clk 0:00:01.7]} 39... Qh1+ {[%clk 0:00:55.3]} 40. Qg2
{[%clk 0:00:01.9]} 40... Qd1+ {[%clk 0:00:54.9]} 41. Qe2 {[%clk 0:00:02.1]}
41... Qh1+ {[%clk 0:00:54.5]} 42. Qg2 {[%clk 0:00:02.4]} 42... Qd1+ {[%clk
0:00:54.2]} 43. Qe2 {[%clk 0:00:02.6]} 43... Qh1+ {[%clk 0:00:53]} 44. Qg2
{[%clk 0:00:02.9]} 1/2-1/2